fUST/lending_fUST_20250713
["ID","MTS","AMOUNT","RATE_DAILY","PERIOD"]
[371561982,1752354648300,-302.46,0.00018626,2]
[371561983,1752354648309,-151.0,0.00018626,2]
[371561984,1752354648320,-1910.75,0.00018626,2]
[371561985,1752354648330,-460.0,0.00018626,2]
[371561986,1752354648340,-151.0,0.00018628,2]
[371561987,1752354648349,-151.0,0.00018628,2]
[371561988,1752354648359,-151.0,0.00018628,2]
[371561989,1752354648368,-151.0,0.00018628,2]
[371561990,1752354648378,-460.0,0.00018629,2]
[371561991,1752354648387,-460.0,0.00018729,2]
[371561992,1752354648397,-638.34,0.00018729,2]
[371561993,1752354648406,-696.29,0.0001873,2]
[371561994,1752354648415,-1243.22,0.0001873,2]
[371561995,1752354648425,-323.56,0.0001873,2]
[371561996,1752354648435,-460.0,0.0001873,2]
[371561997,1752354648444,-902.12,0.0001873,2]
[371561998,1752354648454,-506.19,0.0001873,2]
[371561999,1752354648464,-460.0,0.0001873,2]
[371562000,1752354648474,-161.821658,0.00018731,2]
[371562001,1752354648483,-151.0,0.00018731,2]
[371562002,1752354648493,-151.0,0.00018731,2]
[371562003,1752354648503,-151.0,0.00018731,2]
[371562004,1752354648512,-151.0,0.00018731,2]
[371562005,1752354648522,-151.0,0.00018731,2]
[371562006,1752354648532,-151.0,0.00018731,2]
[371562007,1752354648541,-151.0,0.00018731,2]
[371562008,1752354648551,-155.609801,0.00018731,2]
[371562009,1752354648560,-151.0,0.00018731,2]
[371562010,1752354648569,-2192.74,0.00018731,2]
[371562011,1752354648579,-1283.73,0.00018731,2]
[371562012,1752354648588,-460.0,0.00018731,2]
[371562013,1752354648598,-612.42,0.00018731,2]
[371562014,1752354648608,-703.79,0.00018731,2]
[371562015,1752354648617,-496.58,0.00018731,2]
[371562016,1752354648627,-1380.20571853,0.00018762,2]
[371562017,1752354648637,-1000.0,0.00018797,2]
[371562018,1752354648647,-1000.0,0.00018797,2]
[371562019,1752354648656,-161.821658,0.00018851,2]
[371562020,1752354648666,-536.15469128,0.00018888,2]
[371562021,1752354648676,-1910.75,0.000189,2]
[371562022,1752354648686,-460.0,0.000189,2]
[371562023,1752354648696,-218.61,0.00018903,2]
[371562024,1752354648706,-165.0,0.00018958,2]
[371562025,1752354648715,-4459.10186293,0.00018958,2]
[371562026,1752354648725,-207.4,0.00018958,2]
[371562027,1752354648735,-151.0,0.00018958,2]
[371562028,1752354648746,-151.0,0.00018958,2]
[371562029,1752354648756,-151.0,0.00018958,2]
[371562030,1752354648766,-151.0,0.00018958,2]
[371562031,1752354648776,-151.0,0.00018958,2]
[371562032,1752354648786,-151.0,0.00018958,2]
[371562033,1752354648795,-151.0,0.00018958,2]
[371562034,1752354648805,-151.0,0.00018958,2]
[371562035,1752354648815,-151.0,0.00018958,2]
[371562036,1752354648825,-151.0,0.00018958,2]
[371562037,1752354648834,-151.0,0.00018958,2]
[371562038,1752354648844,-151.0,0.00018958,2]
[371562039,1752354648853,-151.0,0.00018958,2]
[371562040,1752354648863,-151.0,0.00018958,2]
[371562041,1752354648872,-151.0,0.00018958,2]
[371562042,1752354648882,-151.0,0.00018958,2]
[371562043,1752354648891,-2626.11862193,0.00018964,2]
[371562044,1752354648901,-508.15,0.00019003,2]
[371562045,1752354648911,-638.34,0.00019003,2]
[371562046,1752354648920,-696.29,0.00019004,2]
[371562047,1752354648929,-1243.22,0.00019004,2]
[371562048,1752354648939,-460.0,0.00019004,2]
[371562049,1752354648948,-902.12,0.00019004,2]
[371562050,1752354648958,-506.19,0.00019004,2]
[371562051,1752354648968,-151.0,0.00019004,2]
[371562052,1752354648978,-151.0,0.00019004,2]
[371562053,1752354648988,-151.0,0.00019004,2]
[371562054,1752354648998,-460.0,0.00019004,2]
[371562055,1752354649008,-2192.74,0.00019005,2]
[371562056,1752354649017,-1283.73,0.00019005,2]
[371562057,1752354649027,-460.0,0.00019005,2]
[371562058,1752354649036,-612.42,0.00019005,2]
[371562059,1752354649046,-703.79,0.00019005,2]
[371562060,1752354649055,-496.58,0.00019005,2]
[371562061,1752354649065,-151.0,0.00019072,2]
[371562062,1752354649074,-151.0,0.00019072,2]
[371562063,1752354649084,-151.0,0.00019072,2]
[371562064,1752354649097,-1380.20571853,0.00019072,2]
[371562065,1752354649106,-151.0,0.00019173,2]
[371562066,1752354649116,-151.0,0.00019174,2]
[371562067,1752354649126,-151.0,0.00019174,2]
[371562068,1752354649136,-1910.75,0.00019174,2]
[371562069,1752354649145,-460.0,0.00019174,2]
[371562070,1752354649154,-209.073815,0.00019174,2]
[371562071,1752354649163,-209.073815,0.00019174,2]
[371562072,1752354649174,-159.756947,0.00019177,2]
[371562073,1752354649184,-151.0,0.00019177,2]
[371562074,1752354649193,-151.0,0.00019177,2]
[371562075,1752354649203,-151.0,0.00019177,2]
[371562076,1752354649212,-667.199736,0.00019177,2]
[371562077,1752354649222,-151.0,0.00019177,2]
[371562078,1752354649231,-667.199736,0.00019177,2]
[371562079,1752354649241,-208.720933,0.00019177,2]
[371562080,1752354649251,-208.720933,0.00019177,2]
[371562081,1752354649260,-151.0,0.00019177,2]
[371562082,1752354649270,-151.0,0.00019177,2]
[371562083,1752354649282,-362.886254,0.00019177,2]
[371562084,1752354649292,-362.886254,0.00019177,2]
[371562085,1752354649302,-151.0,0.00019178,2]
[371562086,1752354649312,-151.0,0.00019178,2]
[371562087,1752354649321,-151.0,0.00019178,2]
[371562088,1752354649332,-156.527578,0.00019178,2]
[371562089,1752354649341,-263.585055,0.00019178,2]
[371562090,1752354649350,-263.585055,0.00019178,2]
[371562091,1752354649360,-151.0,0.00019178,2]
[371562092,1752354649369,-151.0,0.00019178,2]
[371562093,1752354649379,-151.0,0.00019178,2]
[371562094,1752354649388,-151.0,0.00019178,2]
[371562095,1752354649398,-333.984786,0.00019178,2]
[371562096,1752354649407,-333.984786,0.00019178,2]
[371562097,1752354649418,-151.0,0.00019178,2]
[371562098,1752354649427,-151.0,0.00019178,2]
[371562099,1752354649436,-747.876443,0.00019178,2]
[371562100,1752354649446,-747.876443,0.00019178,2]
[371562101,1752354649456,-151.0,0.00019178,2]
[371562102,1752354649465,-151.0,0.00019178,2]
[371562103,1752354649475,-151.0,0.00019178,2]
[371562104,1752354649484,-392.10546,0.00019178,2]
[371562105,1752354649495,-392.10546,0.00019178,2]
[371562106,1752354649505,-381.021425,0.00019178,2]
[371562107,1752354649515,-392.10546,0.00019178,2]
[371562108,1752354649525,-392.10546,0.00019178,2]
[371562109,1752354649534,-381.021425,0.00019178,2]
[371562110,1752354649544,-151.0,0.00019178,2]
[371562111,1752354649553,-151.0,0.00019178,2]
[371562112,1752354649563,-151.0,0.00019178,2]
[371562113,1752354649572,-151.0,0.00019178,2]
[371562114,1752354649582,-151.0,0.00019178,2]
[371562115,1752354649592,-183.575229,0.00019178,2]
[371562116,1752354649601,-151.0,0.00019178,2]
[371562117,1752354649611,-151.0,0.00019178,2]
[371562118,1752354649621,-151.0,0.00019178,2]
[371562119,1752354649632,-667.199736,0.00019178,2]
[371562120,1752354649641,-151.0,0.00019178,2]
[371562121,1752354649651,-667.199736,0.00019178,2]
[371562122,1752354649661,-151.0,0.00019178,2]
[371562123,1752354649671,-151.0,0.00019178,2]
[371562124,1752354649681,-151.0,0.00019178,2]
[371562125,1752354649691,-151.0,0.00019178,2]
[371562126,1752354649700,-217.936345,0.00019178,2]
[371562127,1752354649710,-151.0,0.00019178,2]
[371562128,1752354649719,-151.0,0.00019178,2]
[371562129,1752354649730,-208.720933,0.00019178,2]
[371562130,1752354649740,-151.0,0.00019178,2]
[371562131,1752354649751,-151.0,0.00019178,2]
[371562132,1752354649761,-208.720933,0.00019178,2]
[371562133,1752354649771,-151.0,0.00019178,2]
[371562134,1752354649781,-151.0,0.00019178,2]
[371562135,1752354649790,-151.0,0.00019178,2]
[371562136,1752354649800,-281.977098,0.00019178,2]
[371562137,1752354649809,-460.0,0.00019178,2]
[371562138,1752354649819,-362.886254,0.00019178,2]
[371562139,1752354649828,-362.886254,0.00019178,2]
[371562140,1752354649838,-151.0,0.00019178,2]
[371562141,1752354649848,-151.0,0.00019178,2]
[371562142,1752354649857,-300.06029,0.00019178,2]
[371562143,1752354649867,-151.0,0.00019178,2]
[371562144,1752354649876,-151.0,0.00019178,2]
[371562145,1752354649886,-151.0,0.00019178,2]
[371562146,1752354649895,-151.0,0.00019178,2]
[371562147,1752354649905,-209.073815,0.00019178,2]
[371562148,1752354649914,-209.073815,0.00019178,2]
[371562149,1752354649925,-151.0,0.00019178,2]
[371562150,1752354649935,-151.0,0.00019178,2]
[371562151,1752354649944,-5000.0,0.00019178,2]
[371562152,1752354649953,-5000.0,0.00019178,2]
[371562153,1752354649963,-5000.0,0.00019178,2]
[371562154,1752354649972,-5000.0,0.00019178,2]
[371562155,1752354649982,-5000.0,0.00019178,2]
[371562156,1752354649993,-2010.35104184,0.00019178,2]
[371562157,1752354650003,-661.767978,0.00019178,2]
[371562158,1752354650013,-48154.9889144,0.00019178,2]
[371562159,1752354650022,-666.0,0.00019178,2]
[371562160,1752354650032,-409.54,0.000192,2]
[371562161,1752354650042,-151.85317382,0.00019205,2]
[371562162,1752354650051,-151.0,0.00019205,2]
[371562163,1752354650061,-151.0,0.00019233,2]
[371562164,1752354650070,-199.04772792,0.0001926,2]
[371562165,1752354650196,-151.0,0.00019273,2]
[371562166,1752354650206,-151.0,0.00019273,2]
[371562167,1752354650215,-638.34,0.00019277,2]
[371562168,1752354650224,-696.29,0.00019278,2]
[371562169,1752354650234,-1243.22,0.00019278,2]
[371562170,1752354650243,-460.0,0.00019278,2]
[371562171,1752354650253,-902.12,0.00019278,2]
[371562172,1752354650263,-506.19,0.00019278,2]
[371562173,1752354650272,-151.0,0.00019278,2]
[371562174,1752354650281,-151.0,0.00019278,2]
[371562175,1752354650290,-460.0,0.00019278,2]
[371562176,1752354650299,-2192.74,0.00019279,2]
[371562177,1752354650309,-1283.73,0.00019279,2]
[371562178,1752354650319,-460.0,0.00019279,2]
[371562179,1752354650329,-612.42,0.00019279,2]
[371562180,1752354650338,-703.79,0.00019279,2]
[371562181,1752354650348,-496.58,0.00019279,2]
[371562182,1752354650357,-151.0,0.00019327,2]
[371562183,1752354650367,-151.0,0.00019327,2]
[371562184,1752354650377,-151.0,0.00019327,2]
[371562185,1752354650386,-151.0,0.00019327,2]
[371562186,1752354650395,-151.0,0.00019329,2]
[371562187,1752354650404,-151.0,0.00019329,2]
[371562188,1752354650414,-151.0,0.00019329,2]
[371562189,1752354650425,-151.0,0.00019329,2]
[371562190,1752354650434,-151.0,0.00019329,2]
[371562191,1752354650444,-153.05155,0.00019329,2]
[371562192,1752354650454,-151.0,0.00019329,2]
[371562193,1752354650463,-151.0,0.00019329,2]
[371562194,1752354650473,-263.585055,0.00019329,2]
[371562195,1752354650482,-263.585055,0.00019329,2]
[371562196,1752354650492,-151.0,0.00019329,2]
[371562197,1752354650504,-158.769012,0.00019329,2]
[371562198,1752354650513,-154.823331,0.00019329,2]
[371562199,1752354650523,-151.0,0.00019329,2]
[371562200,1752354650533,-333.984786,0.00019329,2]
[371562201,1752354650543,-333.984786,0.00019329,2]
[371562202,1752354650552,-151.0,0.00019329,2]
[371562203,1752354650562,-747.876443,0.00019329,2]
[371562204,1752354650572,-747.876443,0.00019329,2]
[371562205,1752354650582,-151.0,0.00019329,2]
[371562206,1752354650591,-151.0,0.00019329,2]
[371562207,1752354650601,-182.965967,0.00019329,2]
[371562208,1752354650610,-392.10546,0.00019329,2]
[371562209,1752354650620,-381.021425,0.00019329,2]
[371562210,1752354650629,-392.10546,0.00019329,2]
[371562211,1752354650639,-381.021425,0.00019329,2]
[371562212,1752354650648,-151.0,0.00019329,2]
[371562213,1752354650658,-151.0,0.00019329,2]
[371562214,1752354650668,-151.0,0.00019329,2]
[371562215,1752354650677,-151.0,0.00019329,2]
[371562216,1752354650687,-151.0,0.00019329,2]
[371562217,1752354650697,-667.199736,0.00019329,2]
[371562218,1752354650706,-151.0,0.00019329,2]
[371562219,1752354650716,-667.199736,0.00019329,2]
[371562220,1752354650725,-151.0,0.00019329,2]
[371562221,1752354650735,-151.0,0.00019329,2]
[371562222,1752354650744,-151.0,0.00019329,2]
[371562223,1752354650755,-151.0,0.00019329,2]
[371562224,1752354650765,-208.720933,0.00019329,2]
[371562225,1752354650775,-151.0,0.00019329,2]
[371562226,1752354650784,-208.720933,0.00019329,2]
[371562227,1752354650794,-151.0,0.00019329,2]
[371562228,1752354650803,-151.0,0.00019329,2]
[371562229,1752354650812,-151.983486,0.00019329,2]
[371562230,1752354650822,-362.886254,0.00019329,2]
[371562231,1752354650832,-362.886254,0.00019329,2]
[371562232,1752354650842,-151.0,0.00019329,2]
[371562233,1752354650851,-151.0,0.00019329,2]
[371562234,1752354650861,-151.0,0.00019329,2]
[371562235,1752354650870,-151.0,0.00019329,2]
[371562236,1752354650879,-151.0,0.00019329,2]
[371562237,1752354650888,-209.073815,0.00019329,2]
[371562238,1752354650898,-209.073815,0.00019329,2]
[371562239,1752354650907,-151.0,0.00019329,2]
[371562240,1752354650916,-151.0,0.00019329,2]
[371562241,1752354650926,-100000.0,0.00019329,2]
[371562242,1752354650935,-500.0,0.00019373,2]
[371562243,1752354650945,-504.12455157,0.00019373,2]
[371562244,1752354650953,-500.0,0.00019373,2]
[371562245,1752354650962,-500.0,0.00019373,2]
[371562246,1752354650971,-500.0,0.00019373,2]
[371562247,1752354650981,-502.54304723,0.00019373,2]
[371562248,1752354650991,-258.0,0.00019373,2]
[371562249,1752354651001,-502.93992605,0.00019373,2]
[371562250,1752354651011,-157.91354213,0.00019373,2]
[371562251,1752354651020,-500.97108494,0.00019373,2]
[371562252,1752354651030,-498.4323488,0.00019373,2]
[371562253,1752354651039,-500.0,0.00019373,2]
[371562254,1752354651049,-500.0,0.00019373,2]
[371562255,1752354651058,-500.0,0.00019373,2]
[371562256,1752354651067,-500.0,0.00019373,2]
[371562257,1752354651076,-500.0,0.00019373,2]
[371562258,1752354651086,-500.0,0.00019373,2]
[371562259,1752354651098,-500.0,0.00019373,2]
[371562260,1752354651107,-500.0,0.00019373,2]
[371562261,1752354651116,-500.0,0.00019373,2]
[371562262,1752354651126,-500.0,0.00019373,2]
[371562263,1752354651135,-500.0,0.00019373,2]
[371562264,1752354651146,-500.0,0.00019373,2]
[371562265,1752354651155,-1380.20571853,0.00019383,2]
[371562266,1752354651164,-1910.75,0.00019448,2]
[371562267,1752354651173,-460.0,0.00019448,2]
[371562268,1752354651184,-385.142152,0.00019452,2]
[371562269,1752354651193,-151.0,0.00019551,2]
[371562270,1752354651202,-638.34,0.00019551,2]
[371562271,1752354651212,-696.29,0.00019552,2]
[371562272,1752354651221,-1243.22,0.00019552,2]
[371562273,1752354651230,-460.0,0.00019552,2]
[371562274,1752354651239,-902.12,0.00019552,2]
[371562275,1752354651249,-506.19,0.00019552,2]
[371562276,1752354651259,-460.0,0.00019552,2]
[371562277,1752354651268,-2192.74,0.00019553,2]
[371562278,1752354651277,-1283.73,0.00019553,2]
[371562279,1752354651287,-460.0,0.00019553,2]
[371562280,1752354651296,-612.42,0.00019553,2]
[371562281,1752354651305,-703.79,0.00019553,2]
[371562282,1752354651314,-496.58,0.00019553,2]
[371562283,1752354651323,-1380.20571853,0.00019693,2]
[371562284,1752354651333,-1910.75,0.00019722,2]
[371562285,1752354651342,-460.0,0.00019722,2]
[371562286,1752354651351,-1224.49118671,0.00019738,2]
[371562287,1752354651361,-638.34,0.00019825,2]
[371562288,1752354651370,-696.29,0.00019826,2]
[371562289,1752354651380,-1243.22,0.00019826,2]
[371562290,1752354651390,-460.0,0.00019826,2]
[371562291,1752354651399,-902.12,0.00019826,2]
[371562292,1752354651409,-506.19,0.00019826,2]
[371562293,1752354651420,-460.0,0.00019826,2]
[371562294,1752354651435,-2192.74,0.00019827,2]
[371562295,1752354651450,-1283.73,0.00019827,2]
[371562296,1752354651464,-363.81,0.00019827,2]
[371562297,1752354651479,-612.42,0.00019827,2]
[371562298,1752354651491,-703.79,0.00019827,2]
[371562299,1752354651505,-496.58,0.00019827,2]
[371562300,1752354651519,-1000.0,0.00019921,2]
[371562301,1752354651533,-298.93991668,0.00019921,2]
[371562302,1752354651547,-500.0,0.00019921,2]
[371562303,1752354651560,-1000.0,0.00019921,2]
[371562304,1752354651574,-1000.0,0.00019921,2]
[371562305,1752354651588,-500.0,0.00019921,2]
[371562306,1752354651602,-1001.22281008,0.00019921,2]
[371562307,1752354651615,-1000.0,0.00019921,2]
[371562308,1752354651627,-500.0,0.00019921,2]
[371562309,1752354651640,-1000.0,0.00019921,2]
[371562310,1752354651652,-1000.0,0.00019921,2]
[371562311,1752354651664,-1000.0,0.00019921,2]
[371562312,1752354651679,-1364.38849262,0.00019942,2]
[371562313,1752354651691,-5452.09641649,0.00019942,2]
[371562314,1752354651704,-1910.75,0.00019996,2]
[371562315,1752354651715,-460.0,0.00019996,2]
[371562316,1752354651725,-151.0,0.00019998,2]
[371562317,1752354651739,-288.192274,0.00019998,2]
[371562318,1752354651751,-151.0,0.00019999,2]
[371562319,1752354651764,-151.0,0.00019999,2]
[371562320,1752354651777,-263.585055,0.00019999,2]
[371562321,1752354651790,-263.585055,0.00019999,2]
[371562322,1752354651802,-333.984786,0.00019999,2]
[371562323,1752354651815,-333.984786,0.00019999,2]
[371562324,1752354651829,-151.0,0.00019999,2]
[371562325,1752354651842,-747.876443,0.00019999,2]
[371562326,1752354651853,-747.876443,0.00019999,2]
[371562327,1752354651863,-381.021425,0.00019999,2]
[371562328,1752354651873,-381.021425,0.00019999,2]
[371562329,1752354651884,-151.0,0.00019999,2]
[371562330,1752354651896,-11218.70515284,0.0002,2]
[371562331,1752354651909,-14327.64330798,0.0002,2]
[371562332,1752354651921,-3190.41222963,0.0002,2]
[371562333,1752354651932,-17512.41079684,0.0002,20]
[371562334,1752354651944,-362.2537436,0.0002,2]
[371562335,1752354651955,-40000.0,0.0002,2]
[371562336,1752354651967,-839.50569351,0.0002,2]
[371562337,1752354651981,-3481.70383816,0.0002,2]
[371562338,1752354651993,-2183.81486075,0.0002,2]
[371562339,1752354652006,-151.0,0.0002,2]
[371562340,1752354652017,-151.0,0.0002,2]
[371562341,1752354652029,-176.885615,0.0002,2]
[371562342,1752354652041,-151.0,0.0002,2]
[371562343,1752354652051,-163.35081,0.0002,2]
[371562344,1752354652062,-151.0,0.0002,2]
[371562345,1752354652073,-151.0,0.0002,2]
[371562346,1752354652084,-237.432285,0.0002,2]
[371562347,1752354652098,-151.0,0.0002,2]
[371562348,1752354652110,-151.0,0.0002,2]
[371562349,1752354652121,-151.0,0.0002,2]
[371562350,1752354652132,-151.0,0.0002,2]
[371562351,1752354652145,-151.0,0.0002,2]
[371562352,1752354652156,-151.0,0.0002,2]
[371562353,1752354652168,-151.0,0.0002,2]
[371562354,1752354652180,-200.532895,0.0002,2]
[371562355,1752354652191,-263.585055,0.0002,2]
[371562356,1752354652202,-263.585055,0.0002,2]
[371562357,1752354652213,-151.0,0.0002,2]
[371562358,1752354652224,-151.0,0.0002,2]
[371562359,1752354652235,-151.0,0.0002,2]
[371562360,1752354652246,-151.0,0.0002,2]
[371562361,1752354652257,-333.984786,0.0002,2]
[371562362,1752354652268,-333.984786,0.0002,2]
[371562363,1752354652280,-151.0,0.0002,2]
[371562364,1752354652291,-747.876443,0.0002,2]
[371562365,1752354652302,-747.876443,0.0002,2]
[371562366,1752354652313,-151.0,0.0002,2]
[371562367,1752354652324,-151.0,0.0002,2]
[371562368,1752354652336,-392.10546,0.0002,2]
[371562369,1752354652347,-392.10546,0.0002,2]
[371562370,1752354652358,-381.021425,0.0002,2]
[371562371,1752354652369,-392.10546,0.0002,2]
[371562372,1752354652380,-392.10546,0.0002,2]
[371562373,1752354652391,-381.021425,0.0002,2]
[371562374,1752354652402,-151.0,0.0002,2]
[371562375,1752354652413,-151.0,0.0002,2]
[371562376,1752354652424,-151.0,0.0002,2]
[371562377,1752354652435,-151.0,0.0002,2]
[371562378,1752354652446,-151.0,0.0002,2]
[371562379,1752354652457,-151.0,0.0002,2]
[371562380,1752354652468,-151.0,0.0002,2]
[371562381,1752354652479,-667.199736,0.0002,2]
[371562382,1752354652490,-667.199736,0.0002,2]
[371562383,1752354652502,-151.0,0.0002,2]
[371562384,1752354652514,-172.08,0.0002,2]
[371562385,1752354652525,-667.199736,0.0002,2]
[371562386,1752354652537,-667.199736,0.0002,2]
[371562387,1752354652549,-151.0,0.0002,2]
[371562388,1752354652560,-151.0,0.0002,2]
[371562389,1752354652572,-151.0,0.0002,2]
[371562390,1752354652583,-151.0,0.0002,2]
[371562391,1752354652595,-151.0,0.0002,2]
[371562392,1752354652606,-208.720933,0.0002,2]
[371562393,1752354652617,-208.720933,0.0002,2]
[371562394,1752354652628,-151.0,0.0002,2]
[371562395,1752354652639,-151.0,0.0002,2]
[371562396,1752354652650,-208.720933,0.0002,2]
[371562397,1752354652661,-208.720933,0.0002,2]
[371562398,1752354652673,-362.886254,0.0002,2]
[371562399,1752354652684,-362.886254,0.0002,2]
[371562400,1752354652695,-362.886254,0.0002,2]
[371562401,1752354652706,-362.886254,0.0002,2]
[371562402,1752354652717,-151.0,0.0002,2]
[371562403,1752354652728,-151.0,0.0002,2]
[371562404,1752354652740,-151.0,0.0002,2]
[371562405,1752354652752,-151.0,0.0002,2]
[371562406,1752354652763,-151.0,0.0002,2]
[371562407,1752354652775,-151.0,0.0002,2]
[371562408,1752354652787,-209.073815,0.0002,2]
[371562409,1752354652798,-209.073815,0.0002,2]
[371562410,1752354652810,-209.073815,0.0002,2]
[371562411,1752354652821,-209.073815,0.0002,2]
[371562412,1752354652832,-151.0,0.0002,2]
[371562413,1752354652843,-151.0,0.0002,2]
[371562414,1752354652855,-151.0,0.0002,2]
[371562415,1752354652866,-222.81300439,0.0002,2]
[371562416,1752354652878,-1380.20571853,0.00020003,2]
[371562417,1752354653006,-638.34,0.00020099,2]
[371562418,1752354653056,-696.29,0.000201,2]
[371562419,1752354653068,-1243.22,0.000201,2]
[371562420,1752354653077,-460.0,0.000201,2]
[371562421,1752354653087,-902.12,0.000201,2]
[371562422,1752354653100,-506.19,0.000201,2]
[371562423,1752354653109,-460.0,0.000201,2]
[371562424,1752354653119,-2192.74,0.00020101,2]
[371562425,1752354653129,-1283.73,0.00020101,2]
[371562426,1752354653139,-612.42,0.00020101,2]
[371562427,1752354653149,-703.79,0.00020101,2]
[371562428,1752354653159,-496.58,0.00020101,2]
[371562429,1752354653171,-500.0,0.00020109,2]
[371562430,1752354653180,-500.0,0.00020109,2]
[371562431,1752354653189,-500.0,0.00020109,2]
[371562432,1752354653199,-330.42922717,0.00020109,2]
[371562433,1752354653208,-500.0,0.00020109,2]
[371562434,1752354653218,-500.0,0.00020109,2]
[371562435,1752354653227,-500.0,0.00020109,2]
[371562436,1752354653236,-500.0,0.00020109,2]
[371562437,1752354653246,-500.0,0.00020109,2]
[371562438,1752354653258,-500.0,0.00020109,2]
[371562439,1752354653268,-500.0,0.00020109,2]
[371562440,1752354653278,-500.0,0.00020109,2]
[371562441,1752354653288,-500.0,0.00020109,2]
[371562442,1752354653297,-500.0,0.00020109,2]
[371562443,1752354653306,-500.0,0.00020109,2]
[371562444,1752354653316,-500.0,0.00020109,2]
[371562445,1752354653325,-339.29658567,0.00020109,2]
[371562446,1752354653334,-500.0,0.00020109,2]
[371562447,1752354653343,-500.0,0.00020109,2]
[371562448,1752354653353,-500.0,0.00020109,2]
[371562449,1752354653362,-500.0,0.00020109,2]
[371562450,1752354653372,-1153.57840671,0.00020109,2]
[371562451,1752354653382,-536.15469128,0.00020113,2]
[371562452,1752354653391,-151.0,0.000202,3]
[371562453,1752354653401,-1910.75,0.0002027,2]
[371562454,1752354653411,-460.0,0.0002027,2]
[371562455,1752354653420,-5000.0,0.00020298,2]
[371562456,1752354653430,-593.403,0.00020298,2]
[371562457,1752354653439,-857.4953208,0.00020301,2]
[371562458,1752354653448,-1380.20571853,0.00020314,3]
[371562459,1752354653457,-215.0738,0.00020327,2]
[371562460,1752354653466,-638.34,0.00020373,2]
[371562461,1752354653476,-696.29,0.00020374,2]
[371562462,1752354653485,-1243.22,0.00020374,2]
[371562463,1752354653494,-460.0,0.00020374,2]
[371562464,1752354653507,-902.12,0.00020374,2]
[371562465,1752354653517,-506.19,0.00020374,2]
[371562466,1752354653526,-474.67262603,0.00020374,2]
[371562467,1752354653535,-2192.74,0.00020375,2]
[371562468,1752354653545,-1283.73,0.00020375,2]
[371562469,1752354653554,-612.42,0.00020375,2]
[371562470,1752354653564,-703.79,0.00020375,2]
[371562471,1752354653574,-496.58,0.00020375,2]
[371562472,1752354653583,-1000.0,0.00020468,2]
[371562473,1752354653593,-1500.0,0.00020468,2]
[371562474,1752354653602,-1500.0,0.00020468,2]
[371562475,1752354653612,-1500.0,0.00020468,2]
[371562476,1752354653621,-1500.0,0.00020468,2]
[371562477,1752354653631,-510.91423198,0.00020468,2]
[371562478,1752354653641,-1483.444475,0.00020468,2]
[371562479,1752354653650,-1910.75,0.00020544,2]
[371562480,1752354653660,-151.0,0.00020544,2]
[371562481,1752354653669,-460.0,0.00020544,2]